bitfinex/quotes_ETHUSD_20250706
["timestamp","ask_amount","ask_price","bid_price","bid_amount"]
[1751837838294,3.85024892,2597.3,2597.2,0.192]
[1751837838862,3.85059684,2597.0,2596.9,1e-08]
[1751837840110,15.71478354,2597.0,2596.9,1e-08]
[1751837840266,19.23578354,2597.0,2596.9,1e-08]
[1751837841169,30.95510228,2597.0,2596.9,1e-08]
[1751837841901,19.23578354,2597.0,2596.9,1e-08]
[1751837842066,21.54440836,2597.0,2596.9,1e-08]
[1751837842398,1.8641867,2597.0,2596.9,1e-08]
[1751837842565,0.3574867,2597.0,2596.9,1e-08]
[1751837842759,3.85053243,2597.1,2596.9,1e-08]
[1751837842986,0.3574867,2597.0,2596.9,1e-08]
[1751837843197,4.20797163,2597.1,2596.9,1e-08]
[1751837843384,0.3574867,2597.0,2596.9,1e-08]
[1751837844899,3.85048493,2597.1,2596.9,1e-08]
[1751837845095,0.35742497,2597.0,2596.9,1e-08]
[1751837845394,0.35742497,2597.0,2596.3,0.03851635]
[1751837845395,13.69214371,2597.0,2596.3,0.03851635]
[1751837845597,3.85191587,2596.2,2595.4,1.6617]
[1751837845778,3.522,2596.3,2595.5,3.85277634]
[1751837845980,4.20950305,2596.2,2595.6,3.85258459]
[1751837846168,3.8517071,2596.3,2595.6,3.85258459]
[1751837846366,0.35766358,2596.2,2595.6,3.85258459]
[1751837847194,0.35766358,2596.2,2595.7,3.85250955]
[1751837847399,0.35766358,2596.2,2595.9,3.91521694]
[1751837847597,7.37339171,2596.5,2595.9,3.91521694]
[1751837847828,0.35756352,2596.4,2595.9,3.91521694]
[1751837848298,1.51577943,2596.4,2595.9,0.0629933]
[1751837848471,4.20931418,2596.3,2595.9,0.0629933]
[1751837848819,3.87946309,2596.2,2595.9,0.0629933]
[1751837849114,0.3574756,2596.1,2595.9,0.0629933]
[1751837849465,4.6250795,2596.1,2595.9,0.0629933]
[1751837849779,4.20943858,2596.0,2595.9,0.0629933]
[1751837850002,14.20943858,2596.0,2595.9,0.0629933]
[1751837850671,14.04422851,2595.9,2595.8,0.001]
[1751837850899,14.40158697,2595.9,2595.8,0.001]
[1751837851077,17.67295,2595.9,2595.8,0.001]
[1751837851279,17.67295,2595.9,2595.8,1e-08]
[1751837851631,18.0053122,2595.9,2595.8,1e-08]
[1751837851772,18.0053122,2595.9,2594.4,3.9758069]
[1751837851773,3.85430718,2594.5,2594.4,0.1214062]
[1751837851976,1.4501,2594.9,2594.4,0.1214062]
[1751837852173,7.73402285,2594.8,2594.4,0.1214062]
[1751837852370,4.21110165,2594.7,2594.4,0.1214062]
[1751837852573,3.85403701,2594.7,2594.4,0.1214062]
[1751837852811,3.85428612,2594.6,2594.4,0.1214062]
[1751837853182,3.85410484,2594.7,2594.4,0.1214062]
[1751837853599,9.83609643,2595.0,2594.4,3.97583505]
[1751837853600,3.85363843,2595.0,2594.4,3.97583505]
[1751837853785,2.0414084,2595.0,2594.4,0.1214062]
[1751837853984,3.85430718,2594.5,2594.4,0.1214062]
[1751837854509,13.85430718,2594.5,2594.4,0.1214062]
[1751837854672,3.453,2595.0,2594.4,0.1214062]
[1751837854874,0.35606858,2594.9,2594.4,1.6765062]
[1751837855074,4.20980526,2594.9,2594.4,1.6765062]
[1751837855274,7.30663576,2595.0,2594.4,1.6765062]
[1751837855502,0.3561596,2594.9,2594.4,5.53092082]
[1751837855706,0.3561596,2594.9,2594.4,1.6765062]
[1751837855913,4.20988562,2594.9,2594.7,0.001]
[1751837856127,0.3561596,2594.8,2594.7,0.001]
[1751837856413,3.85386156,2594.8,2594.7,0.001]
[1751837856706,5.56583541,2594.8,2594.7,0.001]
[1751837859713,15.56583541,2594.8,2594.7,0.001]
[1751837860419,15.56583541,2594.8,2593.5,5.41086194]
[1751837860420,1.6555,2594.0,2592.4,1.5551]
[1751837860622,3.85580861,2593.5,2592.9,3.97800398]
[1751837860921,3.85580861,2593.5,2593.0,3.85653482]
[1751837861122,4.62694404,2593.5,2592.9,0.1214062]
[1751837861292,10.0,2593.9,2592.9,0.1214062]
[1751837861612,3.8528053,2595.6,2594.7,1.5551]
[1751837861812,3.85319274,2595.3,2594.9,0.192]
[1751837862118,3.85357142,2595.0,2594.7,1.5551]
[1751837862321,3.455,2596.2,2594.8,3.89240017]
[1751837862485,3.85261161,2595.7,2594.9,3.85367931]
[1751837862685,3.85269613,2595.6,2595.0,3.85345363]
[1751837863014,3.85271903,2595.6,2595.0,3.85351279]
[1751837863188,3.8535305,2595.1,2594.5,3.85428099]
[1751837863391,3.80341605,2595.1,2594.3,1.6527]
[1751837863622,3.85363644,2595.0,2594.4,3.85444085]
[1751837863839,3.8534557,2595.1,2594.3,1.6527]
[1751837863840,3.85373675,2594.9,2594.3,5.50722075]
[1751837864017,3.85374184,2594.9,2594.3,5.50724665]
[1751837864320,3.85374184,2594.9,2593.7,1.6527]
[1751837864321,9.83609643,2594.7,2593.7,1.6527]
[1751837864483,3.85554881,2593.7,2593.0,3.85640506]
[1751837864683,3.85563077,2593.7,2593.0,3.85640506]
[1751837864909,3.85570944,2593.6,2593.0,3.85640506]
[1751837865137,3.455,2593.9,2592.9,5.63075906]
[1751837865346,3.85568934,2593.6,2593.0,3.85641911]
[1751837865535,1.657,2594.0,2593.3,3.85595017]
[1751837865536,3.85514386,2594.0,2593.3,3.85595017]
[1751837865826,3.85514386,2594.0,2593.4,3.855942]
[1751837866030,16.57077628,2594.2,2593.5,3.85578994]
[1751837866199,9.261,2594.2,2593.5,3.85564679]
[1751837866530,13.11580885,2594.2,2593.1,3.89491801]
[1751837866702,3.85490682,2594.1,2593.5,3.85574478]
[1751837867384,13.1158076,2594.2,2593.6,3.85559525]
[1751837867584,3.85491866,2594.1,2593.6,3.85559525]
[1751837867796,13.11585604,2594.2,2593.6,3.85559525]
[1751837867996,3.85499023,2594.1,2593.5,3.85573501]
[1751837868195,3.85506273,2594.0,2593.5,3.85573501]
[1751837868599,3.85506273,2594.0,2593.4,3.85588218]
[1751837868892,3.85506273,2594.0,2592.9,5.63068661]
[1751837868893,2.04256172,2594.1,2592.9,1.7741062]
[1751837869092,3.85573539,2593.6,2592.9,5.63067335]
[1751837869318,3.85579828,2593.5,2592.9,5.63067335]
[1751837869516,3.85519873,2593.9,2592.9,1.7741062]
[1751837869817,1.5107,2593.7,2592.9,0.1214062]
[1751837870016,3.85653682,2593.0,2592.9,0.1214062]
[1751837870220,7.31153682,2593.0,2592.9,0.1214062]
[1751837870418,3.455,2593.6,2592.9,0.1214062]
[1751837870589,3.85624576,2593.2,2592.9,0.1214062]
[1751837870794,3.85642665,2593.1,2592.9,0.1214062]
[1751837871110,3.85653682,2593.0,2592.9,0.1214062]
[1751837871820,13.85653682,2593.0,2592.9,0.1214062]
[1751837873524,4.2136989,2593.0,2592.9,0.1214062]
[1751837873822,3.85542393,2593.8,2593.0,3.85641601]
[1751837874036,0.192,2593.7,2593.2,4.04893892]
[1751837874242,4.04749692,2593.7,2593.2,4.04893892]
[1751837874449,0.35726453,2593.6,2593.2,0.1928]
[1751837874654,4.04749692,2593.7,2593.2,0.1928]
[1751837874852,0.35727433,2593.6,2593.2,4.04899831]
[1751837875025,0.192,2593.7,2593.2,4.04896459]
[1751837875026,4.04750539,2593.7,2593.2,4.04896459]
[1751837875226,0.35757356,2593.6,2593.1,3.8563392]
[1751837875425,3.456,2593.8,2593.4,0.192]
[1751837875637,0.35758219,2593.7,2593.2,3.85612895]
[1751837876018,3.85588389,2593.5,2593.0,1.5126]
[1751837876218,3.85588389,2593.5,2593.0,5.36912054]
[1751837876437,5.00795127,2593.7,2593.0,1.5126]
[1751837876438,3.85577851,2593.6,2593.0,1.5126]
[1751837876644,3.85597588,2593.4,2592.9,3.97801684]
[1751837876948,10.0,2593.6,2592.9,0.1214062]
[1751837877141,0.35777772,2593.5,2592.9,0.1214062]
[1751837877645,3.8561426,2593.3,2592.9,0.1214062]
[1751837877832,4.21402981,2593.2,2592.9,0.1214062]
[1751837878034,3.85625209,2593.2,2592.9,0.1214062]
[1751837878237,0.35823488,2593.1,2592.9,0.1214062]
[1751837878613,4.21469915,2593.1,2592.9,0.1214062]
[1751837878843,3.85646427,2593.1,2592.9,0.1214062]
[1751837879047,0.35825591,2593.0,2592.9,0.1214062]
[1751837879341,4.21504272,2593.0,2592.9,0.1214062]
[1751837880427,3.85772702,2592.2,2592.1,0.001]
[1751837880751,11.371,2593.2,2592.1,0.001]
[1751837880752,3.85410943,2594.7,2592.3,11.57273463]
[1751837880911,1.76461604,2595.4,2592.3,11.57273463]
[1751837880912,0.20131604,2595.4,2595.0,5.39696454]
[1751837881114,0.20131604,2595.4,2595.0,8.01813434]
[1751837881311,0.002,2595.9,2595.8,3.22516813]
[1751837881539,0.002,2595.9,2595.8,6.43501107]
[1751837881714,1e-08,2595.9,2595.8,5.48497691]
[1751837881915,0.002,2596.2,2596.1,3.85193174]
[1751837882221,0.1214062,2597.3,2596.1,3.85193174]
[1751837882222,0.1214062,2597.3,2596.8,3.85074561]
[1751837882427,0.03852822,2597.2,2596.9,3.85074511]
[1751837882646,0.1214062,2597.3,2596.9,5.47044511]
[1751837882944,0.1214062,2597.3,2596.9,5.50895256]
[1751837883133,0.1214062,2597.3,2596.9,5.47044511]
[1751837883336,0.1214062,2597.3,2596.9,5.50895256]
[1751837883945,0.1214062,2597.3,2596.9,5.47044511]
[1751837884163,0.1214062,2597.3,2596.9,5.50895256]
[1751837884863,0.1214062,2597.3,2596.9,1.65820745]
[1751837885029,0.1214062,2597.3,2596.9,1.6197]
[1751837885395,0.1214062,2597.3,2596.5,3.85132194]
[1751837885396,0.1214062,2597.3,2596.5,3.85133834]
[1751837885518,0.03852822,2597.2,2596.4,16.31184092]
[1751837885719,0.03852822,2597.2,2595.8,1.5652]
[1751837886050,0.192,2595.9,2595.4,0.2305297]
[1751837886348,3.85180797,2596.2,2595.7,0.192]
[1751837886349,0.03852822,2596.1,2595.7,0.192]
[1751837887146,3.8513722,2596.5,2596.0,0.192]
[1751837887329,3.89003234,2596.4,2596.0,0.192]
[1751837887531,3.85165585,2596.3,2596.0,0.192]
[1751837887728,0.03852822,2596.2,2596.0,0.192]
[1751837887943,0.03852822,2596.3,2595.1,1.5652]
[1751837888152,3.85278414,2595.6,2595.4,0.192]
[1751837888346,3.89135041,2595.5,2595.4,0.192]
[1751837888664,3.89135041,2595.5,2595.3,0.192]
[1751837888665,0.03852822,2595.5,2595.3,0.192]
[1751837888980,3.85297064,2595.4,2595.3,0.192]
[1751837889277,3.85320802,2595.3,2594.9,1.65871161]
[1751837889453,3.8918622,2595.2,2595.0,1.32230001]
[1751837889653,3.85347824,2595.1,2594.9,0.192]
[1751837889866,0.03852822,2595.0,2594.7,0.20574717]
[1751837890067,3.85383103,2594.9,2594.8,1.32281311]
[1751837890247,3.8538823,2594.8,2594.5,0.192]
[1751837890446,0.03852822,2594.7,2594.5,0.192]
[1751837890663,3.8538823,2594.8,2594.5,0.192]
[1751837890863,3.85377345,2594.9,2594.5,0.192]
[1751837891068,3.89230167,2594.9,2594.5,0.192]
[1751837891268,0.03852822,2594.9,2594.6,1.32298931]
[1751837891565,0.03852822,2594.9,2594.3,3.85459695]
[1751837891768,3.85374954,2594.9,2594.7,1.65871161]
[1751837891971,0.03852822,2594.8,2594.6,1.65871161]
[1751837892263,3.89243442,2594.8,2594.3,1.65871161]
[1751837892479,0.03852822,2594.8,2594.4,1.32304054]
[1751837892680,3.85404285,2594.7,2594.5,1.32282262]
[1751837892881,3.85415863,2594.6,2594.0,14.63100785]
[1751837893091,3.85415863,2594.6,2594.4,1.65871161]
[1751837893394,0.03852822,2594.5,2594.0,10.776]
[1751837893551,0.03852822,2594.5,2594.3,2.21161549]
[1751837893850,3.85430718,2594.5,2594.4,1.32274066]
[1751837894781,3.85430718,2594.5,2593.7,14.62746518]
[1751837894782,3.85457669,2594.4,2593.7,14.62746518]
[1751837895080,1.564,2596.2,2593.9,2.118]
[1751837895271,0.74954122,2596.1,2594.1,1.568]
[1751837895468,3.85208012,2596.0,2595.0,1.568]
[1751837895673,0.03852822,2595.9,2595.1,2.97472596]
[1751837895982,0.03852822,2595.9,2595.2,1.32134204]
[1751837895983,10.0,2595.5,2595.2,1.32134204]
[1751837896182,8.82485456,2595.4,2595.3,1.32111017]
[1751837896385,3.85371305,2594.9,2594.8,1.6534278]
[1751837896588,0.03852822,2595.0,2594.5,10.767]
[1751837896887,3.85392613,2594.8,2594.6,3.53280542]
[1751837897181,3.85392613,2594.8,2594.7,2.97274312]
[1751837897182,0.03852822,2594.8,2594.7,2.97274312]
[1751837897369,3.85386156,2594.8,2594.7,2.97274312]
[1751837897571,3.85386156,2594.8,2594.5,10.763]
[1751837897778,3.85316665,2595.3,2594.0,1.568]
[1751837897779,0.03852822,2594.7,2594.0,1.568]
[1751837897980,3.85401009,2594.7,2594.6,1.65155319]
[1751837898296,3.89253831,2594.7,2594.6,2.97276084]
[1751837898587,3.85415863,2594.6,2594.5,1.65155319]
[1751837898818,3.85415863,2594.6,2594.2,10.76]
[1751837898819,3.85430718,2594.5,2594.2,10.76]
[1751837898966,0.03852822,2594.5,2594.3,2.97254817]
[1751837899156,0.03852822,2594.5,2594.4,1.32099498]
[1751837899559,0.03852822,2594.5,2594.3,1.32099498]
[1751837899758,3.8542424,2594.6,2594.3,1.32099498]
[1751837899983,0.03852822,2594.5,2594.3,1.32099498]
[1751837900159,0.03852822,2594.5,2594.2,10.755]
[1751837900357,4.66743649,2594.6,2594.2,10.755]
[1751837900863,4.66742128,2594.6,2594.2,10.755]
[1751837901057,4.66742128,2594.6,2593.7,2.21161549]
[1751837901058,3.85430718,2594.5,2593.9,3.85513335]
[1751837901262,3.85459688,2594.4,2594.2,10.755]
[1751837901457,3.85459688,2594.4,2594.1,0.001]
[1751837901763,3.85437274,2594.5,2594.3,0.192]
[1751837902264,3.85445575,2594.4,2594.3,0.192]
[1751837902470,3.85436586,2594.5,2594.3,0.192]
[1751837903004,3.89269043,2594.6,2594.3,0.192]
[1751837903189,3.85445575,2594.4,2594.3,0.192]
[1751837904493,5.54498701,2594.5,2594.3,0.192]
[1751837904694,0.03852822,2594.5,2594.3,0.192]
[1751837904866,3.85433931,2594.5,2594.3,0.192]
[1751837905072,3.85445575,2594.4,2594.3,0.192]
[1751837905791,3.89272474,2594.6,2594.3,0.192]
[1751837905995,3.85438906,2594.5,2594.3,0.192]
[1751837906168,3.85445575,2594.4,2594.3,0.192]
[1751837906369,3.85436043,2594.5,2594.3,0.192]
[1751837906596,0.74697247,2594.6,2594.3,0.192]
[1751837906904,3.85430718,2594.5,2594.3,0.192]
[1751837907064,3.85445575,2594.4,2594.3,0.192]
[1751837907268,3.89289244,2594.5,2594.3,0.192]
[1751837907470,3.85445575,2594.4,2594.3,0.192]
[1751837907798,3.89290719,2594.5,2594.3,0.192]
[1751837908105,4.24374647,2594.4,2594.3,0.192]
[1751837909498,0.38929072,2594.4,2594.3,0.192]
[1751837910112,3.85437869,2594.5,2594.1,0.001]
[1751837910290,0.03852822,2594.4,2594.1,0.001]
[1751837910471,3.85455865,2594.4,2594.1,0.001]
[1751837910674,3.85461284,2594.3,2594.1,0.001]
[1751837910874,3.85460432,2594.3,2594.1,0.001]
[1751837911078,10.0,2594.6,2594.1,0.001]
[1751837911284,3.85450371,2594.4,2594.1,0.001]
[1751837911484,5.45575923,2594.4,2594.1,0.001]
[1751837911819,3.85475291,2594.2,2594.1,0.001]
[1751837911982,3.85467114,2594.3,2594.1,0.001]
[1751837912187,0.93104074,2594.3,2594.1,0.001]
[1751837912404,3.8546756,2594.3,2594.1,0.001]
[1751837912603,3.85463017,2594.3,2594.1,0.001]
[1751837912774,3.85452992,2594.4,2594.1,0.001]
[1751837912984,0.03852822,2594.5,2594.1,0.001]
[1751837913231,3.85461102,2594.3,2594.1,0.001]
[1751837913506,3.85475291,2594.2,2594.1,0.001]
[1751837913705,3.89298823,2594.4,2594.1,0.001]
[1751837913906,3.85475291,2594.2,2594.1,0.001]
[1751837914108,13.85475291,2594.2,2594.1,0.001]
[1751837914276,14.6295418,2594.2,2594.1,0.001]
[1751837920180,14.6295418,2594.2,2594.1,0.193]
[1751837920380,17.9625418,2594.2,2594.1,1e-08]
[1751837920580,3.85623939,2593.2,2593.1,0.001]
[1751837920815,7.22776761,2593.2,2593.1,0.001]
[1751837921613,17.22776761,2593.2,2593.1,1e-08]
[1751837921809,17.18923939,2593.2,2593.1,1e-08]
[1751837922313,26.81381597,2593.2,2593.1,1e-08]
[1751837922618,30.66270845,2593.2,2593.1,1e-08]
[1751837922788,30.30313187,2593.2,2593.1,1e-08]
[1751837923219,3.8574294,2592.4,2592.3,0.1928]
[1751837923409,3.85772702,2592.2,2592.1,0.001]
[1751837923733,3.85772702,2592.2,2591.9,0.0992458]
[1751837923734,3.85802469,2592.0,2591.9,0.0992458]
[1751837923903,3.85862015,2591.6,2591.4,0.1928]
[1751837924106,7.23114837,2591.6,2591.2,0.1928]
[1751837924513,7.23114837,2591.6,2590.6,1.5898]
[1751837924717,7.23114837,2591.6,2590.7,0.0385996]
[1751837924935,3.89714837,2591.6,2590.7,0.0385996]
[1751837925136,7.23114837,2591.6,2590.7,0.0385996]
[1751837925512,3.89714837,2591.6,2590.7,3.89855856]
[1751837925713,9.265,2592.0,2591.5,3.98673282]
[1751837926041,7.19078398,2592.9,2591.6,1.6784862]
[1751837926208,3.89546206,2592.8,2592.0,3.8580226]
[1751837926416,3.89536808,2592.8,2592.1,0.03857875]
[1751837926640,3.85743403,2592.4,2591.8,3.85824425]
[1751837926811,3.85862015,2591.6,2591.5,0.12796377]
[1751837927007,3.334,2591.7,2591.5,0.12796377]
[1751837927207,3.89714837,2591.6,2591.5,0.12796377]
[1751837927412,15.50424837,2591.6,2591.5,0.12796377]
[1751837927633,21.07039223,2591.6,2591.5,0.12796377]
[1751837928213,3.86010962,2590.6,2590.5,0.1134544]
[1751837928414,13.86010962,2590.6,2590.5,0.1134544]
[1751837928635,9.268,2590.9,2590.5,0.1134544]
[1751837928830,13.65815688,2591.6,2590.5,0.1134544]
[1751837928831,6.12838544,2591.6,2590.5,0.1134544]
[1751837929034,0.03852822,2591.8,2590.6,1.61480109]
[1751837929255,10.659,2592.4,2590.6,1.61480109]
[1751837929256,1.6283,2592.9,2591.7,1.5762]
[1751837929543,0.03852822,2593.5,2592.8,1.5239]
[1751837929747,0.04012265,2593.6,2592.9,0.03856685]
[1751837929923,0.04012265,2593.6,2593.5,3.85579332]
[1751837930441,3.89247807,2594.8,2594.1,3.85480163]
[1751837931252,3.37352822,2594.8,2594.2,3.85472473]
[1751837931441,3.85401009,2594.7,2593.5,5.37961688]
[1751837931752,3.85457992,2594.4,2593.7,3.8553624]
[1751837931933,0.03852822,2594.3,2593.8,3.85531826]
[1751837932262,0.03852822,2594.3,2593.5,1.5239]
[1751837932263,0.03852822,2594.5,2593.5,1.5239]
[1751837932464,1.6305,2594.1,2593.0,1.5703]
[1751837932620,3.37352822,2594.0,2593.0,1.5703]
[1751837932822,0.03852822,2594.0,2593.1,3.8563881]
[1751837933028,10.0,2594.7,2594.2,3.8546339]
[1751837933238,10.0,2594.7,2594.1,3.85489572]
[1751837933239,0.03852822,2594.6,2594.1,3.85489572]
[1751837933451,0.03852822,2594.6,2594.0,3.85501122]
[1751837933767,0.03852822,2594.6,2594.0,0.0385505]
[1751837934070,3.334,2595.7,2594.5,5.42452347]
[1751837934244,0.03852822,2595.6,2595.3,3.85301002]
[1751837934429,0.03852822,2595.6,2594.5,12.2103]
[1751837934629,10.0,2595.5,2594.5,1.5703]
[1751837934846,3.8532313,2595.3,2594.6,3.85415863]
[1751837935040,3.89186079,2595.2,2594.6,3.85415863]
[1751837935334,3.85366172,2595.0,2594.5,1.5703]
[1751837935560,0.03852822,2594.9,2594.5,1.5703]
[1751837935865,0.03852822,2595.0,2594.5,1.5703]
[1751837936064,3.85243891,2595.8,2595.2,3.8532016]
[1751837936363,0.03852822,2595.7,2594.8,0.03853861]
[1751837936531,0.43508904,2595.9,2595.3,1.6102]
[1751837936731,0.43508904,2595.9,2595.4,0.0385297]
[1751837937156,0.43508904,2595.9,2595.4,3.85297064]
[1751837938027,4.28734203,2595.9,2595.3,5.46327128]
[1751837938566,5.21915655,2595.8,2595.0,3.85352898]
[1751837938861,3.85271335,2595.6,2595.0,3.85352898]
[1751837939241,0.03852822,2595.7,2594.9,1.6102]
[1751837939573,3.85365579,2595.0,2594.4,5.46459432]
[1751837939750,0.4238938,2594.9,2594.4,1.6102]
[1751837940063,3.89234057,2594.9,2594.4,1.6102]
[1751837940262,0.03852822,2594.9,2594.5,3.8542037]
[1751837940570,3.85263113,2595.7,2595.1,3.85339216]
[1751837940733,0.03852822,2595.7,2595.0,3.89206426]
[1751837940929,0.03852822,2595.7,2595.0,0.03853564]
[1751837941133,0.60395409,2595.7,2595.1,3.85337457]
[1751837941360,0.60395409,2595.7,2595.0,0.03853564]
[1751837941567,3.85267915,2595.6,2595.0,3.85348261]
[1751837942066,0.03852822,2595.6,2594.9,3.89216275]
[1751837942255,0.1134544,2596.0,2595.9,3.85222851]
[1751837942469,0.002,2596.2,2596.1,3.85193174]
[1751837942752,0.002,2596.2,2596.1,3.89045105]
[1751837943231,0.002,2596.2,2596.1,3.85193174]
[1751837943431,0.002,2596.2,2596.1,3.89045105]
[1751837943633,0.002,2596.2,2596.1,3.85193174]
[1751837943939,0.002,2596.2,2596.1,3.89045105]
[1751837944567,0.002,2596.2,2596.1,4.08245105]
[1751837944936,0.002,2596.2,2596.1,0.23051931]
[1751837945137,0.002,2596.2,2596.1,4.08245105]
[1751837946570,0.002,2596.2,2596.1,0.23051931]
[1751837946737,0.002,2596.2,2596.1,4.08245105]
[1751837948133,0.002,2596.2,2596.1,0.23051931]
[1751837948367,0.002,2596.2,2596.1,10.77]
[1751837948867,0.002,2596.2,2596.1,0.192]
[1751837949877,4.23915343,2596.2,2596.1,0.192]
[1751837950044,3.85378337,2596.2,2596.1,0.192]
[1751837950660,0.002,2596.2,2596.1,0.192]
[1751837951169,3.85378337,2596.2,2596.1,0.192]
[1751837951471,0.002,2596.2,2596.1,0.192]
[1751837951975,3.85253206,2595.7,2595.0,5.50331678]
[1751837952171,3.85253206,2595.7,2595.6,0.192]
[1751837952475,3.85326757,2595.2,2594.9,0.001]
[1751837952850,3.85326757,2595.2,2595.1,0.192]
[1751837953475,3.85318504,2595.3,2595.1,0.192]
[1751837953663,0.3853185,2595.3,2595.1,0.192]
[1751837953979,0.192,2595.7,2595.1,0.192]
[1751837954282,3.85282403,2595.5,2595.1,0.192]
[1751837954479,3.89120879,2595.6,2595.3,0.192]
[1751837954772,3.89126978,2595.6,2595.3,0.192]
[1751837954978,0.002,2596.2,2595.1,0.03853416]
[1751837955280,0.002,2596.2,2596.1,5.66443174]
[1751837955446,0.002,2596.2,2596.1,16.24995105]
[1751837955645,0.002,2596.2,2596.1,16.21143174]
[1751837956345,0.002,2596.2,2596.1,10.547]
[1751837957382,0.002,2596.2,2596.1,14.39893174]
[1751837959076,0.002,2596.2,2596.0,3.85201296]
[1751837959380,0.002,2596.2,2596.1,14.38593174]
[1751837959588,0.002,2596.2,2596.1,10.534]
[1751837960657,0.002,2596.2,2596.1,14.38593174]
[1751837961295,0.002,2596.2,2596.1,10.534]
[1751837964792,1e-08,2596.2,2596.1,16.20975686]
[1751837965104,1e-08,2596.2,2596.1,10.505]
[1751837965308,1e-08,2596.2,2596.1,14.35693174]
[1751837965996,1e-08,2596.2,2596.1,10.505]
[1751837966183,1e-08,2596.2,2595.9,0.192]
[1751837966383,1e-08,2596.2,2595.5,1.65875394]
[1751837966384,3.85267375,2595.6,2595.5,1.65875394]
[1751837966694,3.85282219,2595.5,2595.4,0.192]
[1751837966890,3.89135041,2595.5,2595.2,0.192]
[1751837967212,3.85312374,2595.3,2595.2,0.192]
[1751837967413,3.85312374,2595.3,2594.9,0.001]
[1751837967414,3.85356454,2595.0,2594.9,0.001]
[1751837967579,7.31356454,2595.0,2594.9,0.001]
[1751837967773,31.62668415,2595.0,2594.9,0.001]
[1751837967996,3.85460432,2594.3,2594.2,1.65875394]
[1751837968207,3.85475291,2594.2,2593.9,10.491]
[1751837968397,3.8934849,2594.1,2593.8,10.49]
[1751837968606,0.03852822,2594.1,2593.8,10.49]
[1751837968806,3.89230389,2594.9,2594.3,3.85447974]
[1751837969084,3.85303363,2595.4,2594.8,3.85386156]
[1751837969085,15.44895791,2595.4,2594.8,3.85386156]
[1751837969284,3.85248365,2595.8,2594.9,12.13883713]
[1751837969582,1.5959,2596.0,2595.0,10.52353564]
[1751837969919,3.85278312,2595.6,2595.0,10.485]
[1751837970126,0.03852822,2596.1,2595.3,3.85311065]
[1751837970283,1e-08,2596.2,2595.5,1.5103]
[1751837970487,1e-08,2596.2,2596.1,3.85193174]
[1751837970701,1e-08,2596.2,2596.1,15.88375105]
[1751837970994,1e-08,2596.2,2596.1,15.84523174]
[1751837971801,1e-08,2596.2,2596.1,17.42705218]
[1751837972317,1e-08,2596.2,2596.1,15.84523174]
[1751837972823,1e-08,2596.2,2596.1,11.9843]
[1751837973021,1e-08,2596.2,2596.1,15.83623174]
[1751837973690,1e-08,2596.2,2596.1,16.38623174]
[1751837974405,1e-08,2596.2,2596.1,15.83623174]
[1751837974726,1e-08,2596.2,2596.1,18.01622387]
[1751837974928,0.0690054,2596.7,2596.1,18.01622387]
[1751837974929,0.0690054,2596.7,2596.6,5.50659001]
[1751837975134,0.0690054,2596.7,2596.6,15.96959001]
[1751837977822,0.0690054,2596.7,2596.6,16.16159001]
[1751837978493,1e-08,2596.7,2596.6,16.16159001]
[1751837978689,1e-08,2596.7,2596.6,16.60241832]
[1751837980088,1e-08,2596.7,2596.6,4.04319001]
[1751837980294,1e-08,2596.7,2596.6,14.51970191]
[1751837980492,1e-08,2596.7,2596.6,4.04319001]
[1751837980692,1e-08,2596.7,2596.6,0.2305119]
[1751837980900,1e-08,2596.7,2596.6,10.6665119]
[1751837981131,1e-08,2596.7,2596.6,10.628]
[1751837981333,1e-08,2596.7,2596.0,3.8520322]
[1751837981537,1e-08,2596.7,2596.4,4.04347848]
[1751837981698,1e-08,2596.7,2596.5,10.47151338]
[1751837981892,1e-08,2596.7,2596.6,0.192]
[1751837982198,1e-08,2596.7,2596.6,4.04319001]
[1751837983162,1e-08,2596.7,2596.6,6.29960035]
[1751837984746,1e-08,2596.7,2596.6,6.10760035]
[1751837985743,1e-08,2596.7,2596.6,3.85119001]
[1751837986115,1e-08,2596.7,2596.6,14.26419001]
[1751837986448,1e-08,2596.7,2596.6,3.85119001]
[1751837986744,1e-08,2596.7,2596.4,3.8514254]
[1751837987043,1e-08,2596.7,2596.6,3.85119001]
[1751837987730,1e-08,2596.7,2596.6,14.25819001]
[1751837987927,1e-08,2596.7,2596.6,16.06914146]
[1751837988136,1e-08,2596.7,2596.6,16.06714146]
[1751837988347,1e-08,2596.7,2596.6,14.25619001]
[1751837988855,1e-08,2596.7,2596.6,15.76859001]
[1751837989060,0.002,2597.3,2597.2,3.85030032]
[1751837989217,0.002,2597.3,2597.2,14.28880332]
[1751837989412,0.002,2597.3,2597.2,14.25030032]
[1751837992433,0.002,2597.3,2597.2,3.85030032]
[1751837992737,1.6175,2601.1,2599.4,3.84704162]
[1751837992938,0.1014058,2601.3,2601.1,3.84452731]
[1751837993143,0.1014058,2601.3,2600.9,0.03844822]
[1751837993344,0.1014058,2601.3,2600.4,3.84556222]
[1751837993552,1.6175,2601.1,2600.9,3.84482173]
[1751837993759,1.6175,2601.1,2601.0,10.379]
[1751837994134,0.1014058,2601.3,2601.1,3.84452731]
[1751837994464,0.1014058,2601.3,2601.1,3.88297258]
[1751837994866,0.005,2601.3,2601.1,4.07497258]
[1751837995442,1e-08,2601.3,2601.2,3.84437951]
[1751837995947,9.25,2602.3,2601.2,3.84437951]
[1751837995948,1.7174746,2602.8,2601.9,3.84334524]
[1751837996132,0.192,2602.7,2601.9,4.03534524]
[1751837996335,0.23042,2602.6,2601.9,4.03534524]
[1751837996534,0.23042,2602.6,2601.9,14.44077869]
[1751837996535,0.03842,2602.6,2601.9,14.44077869]
[1751837996768,0.03842,2602.6,2601.9,14.40234524]
[1751837996960,0.03842,2602.6,2601.3,1.6272]
[1751837997155,3.84299929,2602.2,2601.4,10.359]
[1751837997350,1.6394,2602.0,2601.4,10.359]
[1751837997565,1.6394,2602.0,2601.5,0.03843936]
[1751837997766,1.6394,2602.0,2601.9,3.84334524]
[1751837997767,0.005,2602.0,2601.9,3.84334524]
[1751837997971,0.005,2602.0,2601.5,0.03843936]
[1751837998179,1.6344,2601.8,2600.4,5.44321217]
[1751837998383,1.6344,2601.8,2601.0,3.84466431]
[1751837998580,1.6344,2601.8,2601.1,10.354]